[Event "Titled Tuesday Blitz April 05 Early 2022"]
[White "Terletsky, Oleg"]
[Black "Bongo Akanga Ndjila, Barthelemy"]
[WhiteFideId "14116774"]
[BlackFideId "10609431"]
[WhiteElo "2064"]
[BlackElo "1768"]
[Result "1-0"]
[Round "05"]
[TimeControl "180+1"]
[Date "2022.04.05"]
[WhiteClock "0:00:59"]
[BlackClock "0:01:33"]

1. e4 {[%clk 0:03:00]}  c6 {[%clk 0:02:59]} 2. d4 {[%clk 0:03:00]}  d5 {[%clk 0:03:00]} 3. Nc3 {[%clk 0:03:00]}  dxe4 {[%clk 0:03:00]} 4. Nxe4 {[%clk 0:03:01]}  Nf6 {[%clk 0:03:01]} 5. Nxf6+ {[%clk 0:03:01]}  gxf6 {[%clk 0:03:01]} 6. c3 {[%clk 0:03:01]}  Bf5 {[%clk 0:03:01]} 7. Nf3 {[%clk 0:03:01]}  e6 {[%clk 0:03:01]} 8. g3 {[%clk 0:03:01]}  Qd5 {[%clk 0:02:58]} 9. Bg2 {[%clk 0:03:00]}  Qc4 {[%clk 0:02:58]} 10. Bf1 {[%clk 0:02:52]}  Qd5 {[%clk 0:02:56]} 11. Qe2 {[%clk 0:02:50]}  Nd7 {[%clk 0:02:44]} 12. Bg2 {[%clk 0:02:49]}  Qe4 {[%clk 0:02:40]} 13. Be3 {[%clk 0:02:44]}  Qd3 {[%clk 0:02:39]} 14. Nh4 {[%clk 0:02:37]}  Qxe2+ {[%clk 0:02:32]} 15. Kxe2 {[%clk 0:02:38]}  Bg6 {[%clk 0:02:28]} 16. Nxg6 {[%clk 0:02:35]}  hxg6 {[%clk 0:02:28]} 17. b4 {[%clk 0:02:15]}  O-O-O {[%clk 0:02:07]} 18. a4 {[%clk 0:02:06]}  Nb6 {[%clk 0:02:03]} 19. b5 {[%clk 0:02:00]}  Kc7 {[%clk 0:01:56]} 20. h4 {[%clk 0:01:25]}  Nd5 {[%clk 0:01:48]} 21. c4 {[%clk 0:01:20]}  Nxe3 {[%clk 0:01:47]} 22. fxe3 {[%clk 0:01:18]}  Bg7 {[%clk 0:01:44]} 23. a5 {[%clk 0:01:10]}  f5 {[%clk 0:01:43]} 24. a6 {[%clk 0:01:08]}  bxa6 {[%clk 0:01:41]} 25. Rxa6 {[%clk 0:01:05]}  cxb5 {[%clk 0:01:40]} 26. Rxa7+ {[%clk 0:01:00]}  Kd6 {[%clk 0:01:33]} 27. c5# {[%clk 0:00:59]} 1-0


[Site "https://www.chess.com"]

[Event "Titled Tuesday Blitz April 05 Early 2022"]
[White "Weetik, Vjacheslav"]
[Black "Manukian, Artak"]
[WhiteFideId "4153472"]
[BlackFideId "13301373"]
[WhiteElo "2469"]
[BlackElo "2365"]
[Result "1-0"]
[Round "05"]
[TimeControl "180+1"]
[Date "2022.04.05"]
[WhiteClock "0:00:39"]
[BlackClock "0:00:55"]

1. d4 {[%clk 0:02:59]}  d5 {[%clk 0:02:58]} 2. c4 {[%clk 0:02:58]}  dxc4 {[%clk 0:02:58]} 3. Nf3 {[%clk 0:02:58]}  Nf6 {[%clk 0:02:55]} 4. e3 {[%clk 0:02:58]}  e6 {[%clk 0:02:54]} 5. Bxc4 {[%clk 0:02:58]}  c5 {[%clk 0:02:55]} 6. O-O {[%clk 0:02:57]}  Nc6 {[%clk 0:02:49]} 7. Nc3 {[%clk 0:02:57]}  a6 {[%clk 0:02:42]} 8. a3 {[%clk 0:02:50]}  b5 {[%clk 0:02:41]} 9. Ba2 {[%clk 0:02:50]}  cxd4 {[%clk 0:02:40]} 10. exd4 {[%clk 0:02:50]}  Be7 {[%clk 0:02:38]} 11. d5 {[%clk 0:02:49]}  exd5 {[%clk 0:02:37]} 12. Nxd5 {[%clk 0:02:49]}  O-O {[%clk 0:02:36]} 13. Re1 {[%clk 0:02:39]}  Nxd5 {[%clk 0:02:32]} 14. Qxd5 {[%clk 0:02:38]}  Bb7 {[%clk 0:02:33]} 15. Qh5 {[%clk 0:02:36]}  h6 {[%clk 0:02:24]} 16. Bxh6 {[%clk 0:02:35]}  gxh6 {[%clk 0:02:21]} 17. Qg6+ {[%clk 0:02:34]}  Kh8 {[%clk 0:02:21]} 18. Qxh6+ {[%clk 0:02:35]}  Kg8 {[%clk 0:02:21]} 19. Re4 {[%clk 0:02:10]}  Bc8 {[%clk 0:02:10]} 20. Qg6+ {[%clk 0:02:06]}  Kh8 {[%clk 0:02:09]} 21. Qxc6 {[%clk 0:01:54]}  Bf5 {[%clk 0:02:08]} 22. Qh6+ {[%clk 0:01:50]}  Kg8 {[%clk 0:02:07]} 23. Re5 {[%clk 0:01:41]}  Qd7 {[%clk 0:01:59]} 24. Rae1 {[%clk 0:01:32]}  Rfe8 {[%clk 0:01:25]} 25. Ng5 {[%clk 0:00:52]}  Bf8 {[%clk 0:01:13]} 26. Bxf7+ {[%clk 0:00:39]}  Qxf7 {[%clk 0:01:10]} 27. Nxf7 {[%clk 0:00:40]}  Bxh6 {[%clk 0:00:57]} 28. Nxh6+ {[%clk 0:00:39]}  Kf8 {[%clk 0:00:55]} 29. Rxe8+ {[%clk 0:00:39]} 1-0


[Site "https://www.chess.com"]

[Event "Titled Tuesday Blitz April 05 Early 2022"]
[White "Xu, Yi"]
[Black "Vokarev, Sergey"]
[WhiteFideId "8605564"]
[BlackFideId "4119711"]
[WhiteElo "2471"]
[BlackElo "2343"]
[Result "1/2-1/2"]
[Round "05"]
[TimeControl "180+1"]
[Date "2022.04.05"]
[WhiteClock "0:01:15"]
[BlackClock "0:01:50"]

1. e4 {[%clk 0:02:58]}  c5 {[%clk 0:02:59]} 2. Nf3 {[%clk 0:02:57]}  Nc6 {[%clk 0:02:59]} 3. Bb5 {[%clk 0:02:56]}  g6 {[%clk 0:02:58]} 4. O-O {[%clk 0:02:56]}  Bg7 {[%clk 0:02:58]} 5. Re1 {[%clk 0:02:55]}  Nf6 {[%clk 0:02:59]} 6. c3 {[%clk 0:02:53]}  O-O {[%clk 0:02:58]} 7. h3 {[%clk 0:02:48]}  Qc7 {[%clk 0:02:58]} 8. d4 {[%clk 0:02:48]}  cxd4 {[%clk 0:02:53]} 9. cxd4 {[%clk 0:02:48]}  d5 {[%clk 0:02:54]} 10. e5 {[%clk 0:02:48]}  Ne4 {[%clk 0:02:54]} 11. Nbd2 {[%clk 0:02:33]}  Bf5 {[%clk 0:02:53]} 12. Nf1 {[%clk 0:02:31]}  Rac8 {[%clk 0:02:43]} 13. Ne3 {[%clk 0:02:30]}  Be6 {[%clk 0:02:43]} 14. Bd3 {[%clk 0:02:15]}  f6 {[%clk 0:02:38]} 15. exf6 {[%clk 0:02:02]}  exf6 {[%clk 0:02:37]} 16. Nxd5 {[%clk 0:02:00]}  Bxd5 {[%clk 0:02:32]} 17. Bxe4 {[%clk 0:02:01]}  Bxe4 {[%clk 0:02:25]} 18. Rxe4 {[%clk 0:02:01]}  Rcd8 {[%clk 0:02:25]} 19. Qb3+ {[%clk 0:01:49]}  Qf7 {[%clk 0:02:19]} 20. Qxf7+ {[%clk 0:01:47]}  Rxf7 {[%clk 0:02:19]} 21. Bf4 {[%clk 0:01:32]}  Rfd7 {[%clk 0:02:13]} 22. Rc1 {[%clk 0:01:26]}  f5 {[%clk 0:02:07]} 23. Re2 {[%clk 0:01:25]}  Nxd4 {[%clk 0:02:06]} 24. Nxd4 {[%clk 0:01:24]}  Bxd4 {[%clk 0:02:06]} 25. Be3 {[%clk 0:01:22]}  Bxe3 {[%clk 0:02:05]} 26. Rxe3 {[%clk 0:01:22]}  Rd1+ {[%clk 0:02:03]} 27. Rxd1 {[%clk 0:01:22]}  Rxd1+ {[%clk 0:02:03]} 28. Kh2 {[%clk 0:01:23]}  Rd2 {[%clk 0:02:03]} 29. Rb3 {[%clk 0:01:23]}  b6 {[%clk 0:02:03]} 30. Kg3 {[%clk 0:01:22]}  Kf7 {[%clk 0:02:01]} 31. Ra3 {[%clk 0:01:20]}  Rxb2 {[%clk 0:01:54]} 32. Rxa7+ {[%clk 0:01:20]}  Kf6 {[%clk 0:01:54]} 33. Rxh7 {[%clk 0:01:15]}  Rxa2 {[%clk 0:01:54]} 34. Rb7 {[%clk 0:01:15]}  Rb2 {[%clk 0:01:53]} 35. Kf3 {[%clk 0:01:15]}  Rb3+ {[%clk 0:01:52]} 36. Ke2 {[%clk 0:01:15]}  Rb2+ {[%clk 0:01:50]} 1/2-1/2


[Site "https://www.chess.com"]

[Event "Titled Tuesday Blitz April 05 Early 2022"]
[White "volunteers1998"]
[Black "Lehtosaari, Mauri"]
[BlackFideId "501999"]
[WhiteElo "2330"]
[BlackElo "2551"]
[Result "0-1"]
[Round "05"]
[TimeControl "180+1"]
[Date "2022.04.05"]
[WhiteClock "0:00:02"]
[BlackClock "0:00:13"]

1. e4 {[%clk 0:02:59]}  d5 {[%clk 0:02:56]} 2. exd5 {[%clk 0:02:58]}  Qxd5 {[%clk 0:02:57]} 3. Nc3 {[%clk 0:02:56]}  Qe5+ {[%clk 0:02:57]} 4. Be2 {[%clk 0:02:51]}  c6 {[%clk 0:02:55]} 5. Nf3 {[%clk 0:02:49]}  Qc7 {[%clk 0:02:55]} 6. d4 {[%clk 0:02:46]}  Bf5 {[%clk 0:02:54]} 7. O-O {[%clk 0:02:44]}  e6 {[%clk 0:02:53]} 8. Re1 {[%clk 0:02:41]}  Nf6 {[%clk 0:02:50]} 9. Bg5 {[%clk 0:02:34]}  Be7 {[%clk 0:02:50]} 10. Ne5 {[%clk 0:02:28]}  Nbd7 {[%clk 0:02:46]} 11. Bd3 {[%clk 0:02:22]}  Bxd3 {[%clk 0:02:42]} 12. Qxd3 {[%clk 0:02:20]}  Rd8 {[%clk 0:02:24]} 13. Qg3 {[%clk 0:02:16]}  Nxe5 {[%clk 0:01:44]} 14. dxe5 {[%clk 0:02:07]}  Nd5 {[%clk 0:01:44]} 15. Bxe7 {[%clk 0:02:03]}  Nxe7 {[%clk 0:01:44]} 16. Rad1 {[%clk 0:01:57]}  O-O {[%clk 0:01:42]} 17. Ne4 {[%clk 0:01:53]}  Rxd1 {[%clk 0:01:34]} 18. Rxd1 {[%clk 0:01:53]}  Nf5 {[%clk 0:01:30]} 19. Qc3 {[%clk 0:01:47]}  Qb6 {[%clk 0:01:14]} 20. Qb3 {[%clk 0:01:39]}  Qa5 {[%clk 0:01:05]} 21. f4 {[%clk 0:01:32]}  b6 {[%clk 0:00:57]} 22. g4 {[%clk 0:01:24]}  Ne7 {[%clk 0:00:43]} 23. Nd6 {[%clk 0:01:24]}  Qc5+ {[%clk 0:00:36]} 24. Kg2 {[%clk 0:01:22]}  Nd5 {[%clk 0:00:37]} 25. Kf3 {[%clk 0:01:05]}  f6 {[%clk 0:00:32]} 26. c4 {[%clk 0:01:00]}  fxe5 {[%clk 0:00:32]} 27. cxd5 {[%clk 0:00:55]}  Rxf4+ {[%clk 0:00:31]} 28. Kg2 {[%clk 0:00:54]}  Rf2+ {[%clk 0:00:14]} 29. Kg3 {[%clk 0:00:52]}  Re2 {[%clk 0:00:11]} 30. Qf3 {[%clk 0:00:44]}  Re3 {[%clk 0:00:11]} 31. dxc6 {[%clk 0:00:44]}  Rxf3+ {[%clk 0:00:11]} 32. Kxf3 {[%clk 0:00:43]}  Qxc6+ {[%clk 0:00:11]} 33. Ne4 {[%clk 0:00:34]}  h6 {[%clk 0:00:10]} 34. h4 {[%clk 0:00:31]}  Qc2 {[%clk 0:00:10]} 35. Rd2 {[%clk 0:00:28]}  Qb1 {[%clk 0:00:10]} 36. a3 {[%clk 0:00:26]}  Qh1+ {[%clk 0:00:10]} 37. Ke3 {[%clk 0:00:23]}  Qh3+ {[%clk 0:00:10]} 38. Kf2 {[%clk 0:00:21]}  Qxh4+ {[%clk 0:00:11]} 39. Kf3 {[%clk 0:00:20]}  Qh3+ {[%clk 0:00:11]} 40. Ng3 {[%clk 0:00:18]}  Qh4 {[%clk 0:00:11]} 41. Re2 {[%clk 0:00:16]}  Qf6+ {[%clk 0:00:11]} 42. Kg2 {[%clk 0:00:13]}  Qf4 {[%clk 0:00:11]} 43. Re4 {[%clk 0:00:11]}  Qd2+ {[%clk 0:00:12]} 44. Re2 {[%clk 0:00:09]}  Qd5+ {[%clk 0:00:12]} 45. Kh2 {[%clk 0:00:08]}  b5 {[%clk 0:00:13]} 46. Ne4 {[%clk 0:00:07]}  a5 {[%clk 0:00:13]} 47. Kg3 {[%clk 0:00:07]}  Qd3+ {[%clk 0:00:13]} 48. Kf2 {[%clk 0:00:05]}  b4 {[%clk 0:00:13]} 49. g5 {[%clk 0:00:04]}  hxg5 {[%clk 0:00:12]} 50. Nxg5 {[%clk 0:00:04]}  Qf5+ {[%clk 0:00:13]} 51. Nf3 {[%clk 0:00:03]}  e4 {[%clk 0:00:13]} 52. axb4 {[%clk 0:00:03]}  Qxf3+ {[%clk 0:00:12]} 53. Ke1 {[%clk 0:00:02]}  axb4 {[%clk 0:00:13]} 0-1


[Site "https://www.chess.com"]

[Event "Titled Tuesday Blitz April 05 Early 2022"]
[White "Aldokhin, Ivan"]
[Black "Pesotskiy, Mikhail"]
[WhiteFideId "24115720"]
[BlackFideId "34164453"]
[WhiteElo "2231"]
[BlackElo "2010"]
[Result "1-0"]
[Round "06"]
[TimeControl "180+1"]
[Date "2022.04.05"]
[WhiteClock "0:01:05"]
[BlackClock "0:01:11"]

1. e4 {[%clk 0:02:59]}  e6 {[%clk 0:03:00]} 2. d4 {[%clk 0:02:59]}  d5 {[%clk 0:03:00]} 3. Nc3 {[%clk 0:02:59]}  Bb4 {[%clk 0:03:00]} 4. Ne2 {[%clk 0:02:58]}  dxe4 {[%clk 0:03:00]} 5. a3 {[%clk 0:02:58]}  Be7 {[%clk 0:03:00]} 6. Nxe4 {[%clk 0:02:58]}  Nd7 {[%clk 0:03:01]} 7. N2g3 {[%clk 0:02:58]}  Ngf6 {[%clk 0:03:02]} 8. Nxf6+ {[%clk 0:02:49]}  Nxf6 {[%clk 0:03:03]} 9. Bd3 {[%clk 0:02:49]}  c5 {[%clk 0:03:02]} 10. dxc5 {[%clk 0:02:48]}  Bxc5 {[%clk 0:03:03]} 11. Qe2 {[%clk 0:02:48]}  Bd7 {[%clk 0:02:59]} 12. Bg5 {[%clk 0:02:45]}  Qb6 {[%clk 0:02:52]} 13. O-O {[%clk 0:02:32]}  Rc8 {[%clk 0:02:34]} 14. Nf5 {[%clk 0:02:18]}  Bf8 {[%clk 0:02:11]} 15. Rfe1 {[%clk 0:02:07]}  h6 {[%clk 0:02:04]} 16. Bf4 {[%clk 0:01:54]}  Nd5 {[%clk 0:02:01]} 17. Be5 {[%clk 0:01:47]}  f6 {[%clk 0:01:37]} 18. Bd4 {[%clk 0:01:25]}  Qc7 {[%clk 0:01:26]} 19. Qh5+ {[%clk 0:01:18]}  Kd8 {[%clk 0:01:26]} 20. Qf7 {[%clk 0:01:16]}  Nf4 {[%clk 0:01:11]} 21. Nxg7 {[%clk 0:01:05]} 1-0


[Site "https://www.chess.com"]

[Event "Titled Tuesday Blitz April 05 Early 2022"]
[White "Alinasab, Mobina"]
[Black "Manolache, Marius"]
[WhiteFideId "12528897"]
[BlackFideId "1201530"]
[WhiteElo "2031"]
[BlackElo "2364"]
[Result "1-0"]
[Round "06"]
[TimeControl "180+1"]
[Date "2022.04.05"]
[WhiteClock "0:00:16"]
[BlackClock "0:00:03"]

1. e4 {[%clk 0:03:00]}  c5 {[%clk 0:02:56]} 2. Nf3 {[%clk 0:03:00]}  e6 {[%clk 0:02:55]} 3. d4 {[%clk 0:03:00]}  cxd4 {[%clk 0:02:55]} 4. Nxd4 {[%clk 0:03:01]}  a6 {[%clk 0:02:56]} 5. c4 {[%clk 0:03:02]}  Nf6 {[%clk 0:02:55]} 6. Nc3 {[%clk 0:03:02]}  Qc7 {[%clk 0:02:56]} 7. Be2 {[%clk 0:03:01]}  h5 {[%clk 0:02:54]} 8. Be3 {[%clk 0:02:55]}  b6 {[%clk 0:02:52]} 9. O-O {[%clk 0:02:49]}  Bb7 {[%clk 0:02:50]} 10. f3 {[%clk 0:02:49]}  d6 {[%clk 0:02:47]} 11. Qd2 {[%clk 0:02:45]}  Nbd7 {[%clk 0:02:46]} 12. Rfc1 {[%clk 0:02:45]}  Be7 {[%clk 0:02:44]} 13. a4 {[%clk 0:02:44]}  Rc8 {[%clk 0:02:37]} 14. a5 {[%clk 0:02:33]}  bxa5 {[%clk 0:02:35]} 15. Nb3 {[%clk 0:02:34]}  Rb8 {[%clk 0:02:22]} 16. Nxa5 {[%clk 0:02:33]}  Bc8 {[%clk 0:02:23]} 17. b4 {[%clk 0:02:24]}  O-O {[%clk 0:02:20]} 18. b5 {[%clk 0:02:21]}  Nc5 {[%clk 0:02:15]} 19. Na4 {[%clk 0:02:08]}  Nxa4 {[%clk 0:01:36]} 20. Rxa4 {[%clk 0:02:09]}  Bd7 {[%clk 0:01:36]} 21. Raa1 {[%clk 0:02:02]}  Rfc8 {[%clk 0:01:29]} 22. bxa6 {[%clk 0:01:51]}  Ra8 {[%clk 0:01:29]} 23. Nb7 {[%clk 0:01:36]}  Bc6 {[%clk 0:01:18]} 24. Rcb1 {[%clk 0:01:35]}  Nd7 {[%clk 0:01:12]} 25. Qa5 {[%clk 0:00:47]}  Bxb7 {[%clk 0:00:37]} 26. Rxb7 {[%clk 0:00:34]}  Qxa5 {[%clk 0:00:25]} 27. Rxa5 {[%clk 0:00:35]}  Bd8 {[%clk 0:00:25]} 28. Ra2 {[%clk 0:00:20]}  Nc5 {[%clk 0:00:19]} 29. Bxc5 {[%clk 0:00:18]}  Rxc5 {[%clk 0:00:19]} 30. a7 {[%clk 0:00:18]}  Rcc8 {[%clk 0:00:19]} 31. Ra6 {[%clk 0:00:17]}  Kf8 {[%clk 0:00:12]} 32. c5 {[%clk 0:00:18]}  Rxc5 {[%clk 0:00:11]} 33. Rb8 {[%clk 0:00:17]}  Rxa7 {[%clk 0:00:03]} 34. Rxa7 {[%clk 0:00:16]} 1-0


[Site "https://www.chess.com"]

[Event "Titled Tuesday Blitz April 05 Early 2022"]
[White "Antonio, Jorge Carlos"]
[Black "Dilmukhametov, Artur"]
[WhiteFideId "113190"]
[BlackFideId "24179922"]
[WhiteElo "2247"]
[BlackElo "2244"]
[Result "1-0"]
[Round "06"]
[TimeControl "180+1"]
[Date "2022.04.05"]
[WhiteClock "0:01:12"]
[BlackClock "0:01:19"]

1. e4 {[%clk 0:03:00]}  e6 {[%clk 0:02:59]} 2. f4 {[%clk 0:03:00]}  d5 {[%clk 0:02:58]} 3. e5 {[%clk 0:03:00]}  Nc6 {[%clk 0:02:51]} 4. Nf3 {[%clk 0:03:00]}  Bc5 {[%clk 0:02:51]} 5. d4 {[%clk 0:02:56]}  Bb6 {[%clk 0:02:50]} 6. c3 {[%clk 0:02:53]}  Nce7 {[%clk 0:02:44]} 7. b4 {[%clk 0:02:51]}  a5 {[%clk 0:02:42]} 8. b5 {[%clk 0:02:51]}  c6 {[%clk 0:02:40]} 9. Ba3 {[%clk 0:02:46]}  Bd7 {[%clk 0:02:39]} 10. bxc6 {[%clk 0:02:42]}  bxc6 {[%clk 0:02:38]} 11. Nbd2 {[%clk 0:02:38]}  Rc8 {[%clk 0:02:38]} 12. Ba6 {[%clk 0:02:36]}  Rc7 {[%clk 0:02:36]} 13. Nb3 {[%clk 0:02:28]}  Nh6 {[%clk 0:02:33]} 14. Nc5 {[%clk 0:02:20]}  Bxc5 {[%clk 0:02:31]} 15. Bxc5 {[%clk 0:02:18]}  O-O {[%clk 0:02:28]} 16. O-O {[%clk 0:02:13]}  f6 {[%clk 0:02:24]} 17. Rb1 {[%clk 0:02:09]}  fxe5 {[%clk 0:02:21]} 18. fxe5 {[%clk 0:02:08]}  Nhf5 {[%clk 0:02:20]} 19. Qd2 {[%clk 0:02:05]}  Rf7 {[%clk 0:02:20]} 20. Ng5 {[%clk 0:02:01]}  Rf8 {[%clk 0:02:06]} 21. Bb6 {[%clk 0:01:55]}  h6 {[%clk 0:01:59]} 22. Bxc7 {[%clk 0:01:54]}  Qxc7 {[%clk 0:01:58]} 23. Nh3 {[%clk 0:01:45]}  g5 {[%clk 0:01:57]} 24. Nxg5 {[%clk 0:01:39]}  hxg5 {[%clk 0:01:54]} 25. Qxg5+ {[%clk 0:01:39]}  Ng7 {[%clk 0:01:54]} 26. Rxf8+ {[%clk 0:01:34]}  Kxf8 {[%clk 0:01:53]} 27. Qf6+ {[%clk 0:01:30]}  Kg8 {[%clk 0:01:45]} 28. Qxe7 {[%clk 0:01:30]}  Nf5 {[%clk 0:01:42]} 29. Qg5+ {[%clk 0:01:28]}  Kf8 {[%clk 0:01:40]} 30. Rb7 {[%clk 0:01:28]}  Qc8 {[%clk 0:01:36]} 31. Qf6+ {[%clk 0:01:26]}  Ke8 {[%clk 0:01:34]} 32. Qh8+ {[%clk 0:01:24]}  Ke7 {[%clk 0:01:34]} 33. Qh7+ {[%clk 0:01:22]}  Kf8 {[%clk 0:01:32]} 34. Qxd7 {[%clk 0:01:20]}  Qxd7 {[%clk 0:01:30]} 35. Rxd7 {[%clk 0:01:20]}  Ne3 {[%clk 0:01:26]} 36. c4 {[%clk 0:01:18]}  dxc4 {[%clk 0:01:25]} 37. Rd6 {[%clk 0:01:16]}  c3 {[%clk 0:01:25]} 38. Bd3 {[%clk 0:01:16]}  c2 {[%clk 0:01:23]} 39. Rxc6 {[%clk 0:01:14]}  c1=Q+ {[%clk 0:01:19]} 40. Rxc1 {[%clk 0:01:12]} 1-0


[Site "https://www.chess.com"]

[Event "Titled Tuesday Blitz April 05 Early 2022"]
[White "Bashirli, Saadat"]
[Black "Horcajuelo Rocamora, Martin"]
[WhiteFideId "13429990"]
[BlackFideId "24573027"]
[WhiteElo "1173"]
[BlackElo "1822"]
[Result "1/2-1/2"]
[Round "06"]
[TimeControl "180+1"]
[Date "2022.04.05"]
[WhiteClock "0:00:50"]
[BlackClock "0:00:46"]

1. d4 {[%clk 0:03:00]}  Nf6 {[%clk 0:02:54]} 2. Bg5 {[%clk 0:02:58]}  c5 {[%clk 0:02:51]} 3. dxc5 {[%clk 0:02:56]}  e6 {[%clk 0:02:48]} 4. e4 {[%clk 0:02:54]}  Nc6 {[%clk 0:02:31]} 5. Nc3 {[%clk 0:02:51]}  Bxc5 {[%clk 0:02:28]} 6. Nf3 {[%clk 0:02:48]}  h6 {[%clk 0:02:26]} 7. Bxf6 {[%clk 0:02:46]}  Qxf6 {[%clk 0:02:25]} 8. Bd3 {[%clk 0:02:43]}  O-O {[%clk 0:02:24]} 9. O-O {[%clk 0:02:41]}  a6 {[%clk 0:02:24]} 10. Re1 {[%clk 0:02:39]}  d6 {[%clk 0:02:21]} 11. Qd2 {[%clk 0:02:38]}  b5 {[%clk 0:02:20]} 12. e5 {[%clk 0:02:30]}  Nxe5 {[%clk 0:02:08]} 13. Nxe5 {[%clk 0:02:15]}  dxe5 {[%clk 0:02:09]} 14. Ne4 {[%clk 0:02:13]}  Qe7 {[%clk 0:02:03]} 15. Nxc5 {[%clk 0:02:11]}  Qxc5 {[%clk 0:02:04]} 16. Qe2 {[%clk 0:02:08]}  Bb7 {[%clk 0:01:44]} 17. Qxe5 {[%clk 0:02:06]}  Qxe5 {[%clk 0:01:45]} 18. Rxe5 {[%clk 0:02:05]}  Rfd8 {[%clk 0:01:46]} 19. Rae1 {[%clk 0:02:04]}  Rac8 {[%clk 0:01:42]} 20. R5e3 {[%clk 0:01:56]}  Kf8 {[%clk 0:01:39]} 21. f3 {[%clk 0:01:50]}  Bd5 {[%clk 0:01:37]} 22. a3 {[%clk 0:01:47]}  f6 {[%clk 0:01:34]} 23. Kf2 {[%clk 0:01:43]}  e5 {[%clk 0:01:34]} 24. Bf5 {[%clk 0:01:40]}  Rb8 {[%clk 0:01:30]} 25. Rd3 {[%clk 0:01:37]}  Bc4 {[%clk 0:01:28]} 26. Rxd8+ {[%clk 0:01:35]}  Rxd8 {[%clk 0:01:29]} 27. Ke3 {[%clk 0:01:31]}  Ke7 {[%clk 0:01:25]} 28. h3 {[%clk 0:01:23]}  g6 {[%clk 0:01:15]} 29. Be4 {[%clk 0:01:16]}  f5 {[%clk 0:01:12]} 30. Bd3 {[%clk 0:01:14]}  Bxd3 {[%clk 0:01:12]} 31. cxd3 {[%clk 0:01:13]}  Rc8 {[%clk 0:01:06]} 32. Kd2 {[%clk 0:01:11]}  Kd6 {[%clk 0:01:05]} 33. g4 {[%clk 0:01:06]}  Kd5 {[%clk 0:00:55]} 34. gxf5 {[%clk 0:01:02]}  gxf5 {[%clk 0:00:56]} 35. Rg1 {[%clk 0:00:55]}  Rc6 {[%clk 0:00:56]} 36. Rg7 {[%clk 0:00:53]}  Rd6 {[%clk 0:00:49]} 37. Rf7 {[%clk 0:00:52]}  Ke6 {[%clk 0:00:49]} 38. Rh7 {[%clk 0:00:51]}  Kd5 {[%clk 0:00:49]} 39. Rf7 {[%clk 0:00:50]}  Ke6 {[%clk 0:00:47]} 40. Rh7 {[%clk 0:00:50]}  Kd5 {[%clk 0:00:46]} 41. Rf7 {[%clk 0:00:50]} 1/2-1/2


[Site "https://www.chess.com"]

[Event "Titled Tuesday Blitz April 05 Early 2022"]
[White "Begunov, Konstantin"]
[Black "Yushko, Olga"]
[WhiteFideId "4118510"]
[BlackFideId "14114500"]
[WhiteElo "2262"]
[BlackElo "2028"]
[Result "1-0"]
[Round "06"]
[TimeControl "180+1"]
[Date "2022.04.05"]
[WhiteClock "0:00:08"]
[BlackClock "0:00:03"]

1. d4 {[%clk 0:03:00]}  e6 {[%clk 0:02:59]} 2. c4 {[%clk 0:03:01]}  f5 {[%clk 0:02:59]} 3. Nc3 {[%clk 0:03:00]}  Nf6 {[%clk 0:03:00]} 4. Bg5 {[%clk 0:03:00]}  Be7 {[%clk 0:03:00]} 5. Qc2 {[%clk 0:03:00]}  Nc6 {[%clk 0:02:59]} 6. O-O-O {[%clk 0:02:59]}  O-O {[%clk 0:02:55]} 7. f3 {[%clk 0:02:56]}  d6 {[%clk 0:02:54]} 8. e4 {[%clk 0:02:46]}  e5 {[%clk 0:02:55]} 9. dxe5 {[%clk 0:02:39]}  Nxe5 {[%clk 0:02:54]} 10. exf5 {[%clk 0:02:35]}  Qe8 {[%clk 0:02:51]} 11. g4 {[%clk 0:02:26]}  Nfxg4 {[%clk 0:02:31]} 12. Bxe7 {[%clk 0:02:23]}  Bxf5 {[%clk 0:02:31]} 13. Qd2 {[%clk 0:01:52]}  Qxe7 {[%clk 0:02:20]} 14. fxg4 {[%clk 0:01:50]}  Nxg4 {[%clk 0:02:18]} 15. Bg2 {[%clk 0:01:39]}  Rae8 {[%clk 0:01:57]} 16. Bxb7 {[%clk 0:01:30]}  Qh4 {[%clk 0:01:46]} 17. Nf3 {[%clk 0:01:25]}  Qh3 {[%clk 0:01:37]} 18. Nd4 {[%clk 0:01:20]}  Bg6 {[%clk 0:01:30]} 19. Bd5+ {[%clk 0:01:16]}  Kh8 {[%clk 0:01:30]} 20. Rde1 {[%clk 0:01:03]}  Rd8 {[%clk 0:01:12]} 21. Ne6 {[%clk 0:00:56]}  Rf2 {[%clk 0:01:09]} 22. Re2 {[%clk 0:00:51]}  Rxe2 {[%clk 0:01:03]} 23. Qxe2 {[%clk 0:00:36]}  Re8 {[%clk 0:01:03]} 24. Rg1 {[%clk 0:00:26]}  Nf6 {[%clk 0:00:57]} 25. Qg2 {[%clk 0:00:22]}  Qe3+ {[%clk 0:00:55]} 26. Kd1 {[%clk 0:00:18]}  Bh5+ {[%clk 0:00:45]} 27. Kc2 {[%clk 0:00:17]}  Bg6+ {[%clk 0:00:44]} 28. Kb3 {[%clk 0:00:17]}  Qb6+ {[%clk 0:00:43]} 29. Ka3 {[%clk 0:00:15]}  Qa5+ {[%clk 0:00:41]} 30. Na4 {[%clk 0:00:15]}  c6 {[%clk 0:00:38]} 31. Nf4 {[%clk 0:00:12]}  Re3+ {[%clk 0:00:37]} 32. b3 {[%clk 0:00:11]}  c5 {[%clk 0:00:28]} 33. Nxg6+ {[%clk 0:00:11]}  hxg6 {[%clk 0:00:25]} 34. Qc2 {[%clk 0:00:08]}  Qb4+ {[%clk 0:00:25]} 35. Kb2 {[%clk 0:00:09]}  Nxd5 {[%clk 0:00:20]} 36. cxd5 {[%clk 0:00:09]}  Qd4+ {[%clk 0:00:20]} 37. Nc3 {[%clk 0:00:08]}  a5 {[%clk 0:00:19]} 38. Rd1 {[%clk 0:00:09]}  Qb4 {[%clk 0:00:15]} 39. Rd3 {[%clk 0:00:08]}  Re7 {[%clk 0:00:11]} 40. Rg3 {[%clk 0:00:07]}  Qd4 {[%clk 0:00:08]} 41. Qxg6 {[%clk 0:00:06]}  Qd2+ {[%clk 0:00:07]} 42. Qc2 {[%clk 0:00:07]}  Qd4 {[%clk 0:00:06]} 43. Rd3 {[%clk 0:00:06]}  Qf4 {[%clk 0:00:06]} 44. Rh3+ {[%clk 0:00:06]}  Kg8 {[%clk 0:00:05]} 45. Qh7+ {[%clk 0:00:07]}  Kf7 {[%clk 0:00:05]} 46. Qh5+ {[%clk 0:00:07]}  Kf8 {[%clk 0:00:04]} 47. Rf3 {[%clk 0:00:07]}  Rf7 {[%clk 0:00:03]} 48. Rxf4 {[%clk 0:00:07]}  Rxf4 {[%clk 0:00:04]} 49. Qg5 {[%clk 0:00:07]}  Rf6 {[%clk 0:00:03]} 50. Ka3 {[%clk 0:00:08]}  Ke7 {[%clk 0:00:03]} 51. Ne4 {[%clk 0:00:08]} 1-0


[Site "https://www.chess.com"]